fUST/lending_fUST_20240721
["ID","MTS","AMOUNT","RATE_DAILY","PERIOD"]
[332847621,1721575843056,-600.0,0.00013939,2]
[332847622,1721575843068,-13449.4671886,0.00013962,2]
[332847623,1721575843078,-500.0,0.00013972,2]
[332847624,1721575843088,-249.97,0.00013972,2]
[332847625,1721575843099,-374.1,0.00013972,2]
[332847626,1721575843109,-367.76,0.00013972,2]
[332847627,1721575843120,-500.0,0.00013972,2]
[332847628,1721575843130,-187.94,0.00013972,2]
[332847629,1721575843140,-500.0,0.00013972,2]
[332847630,1721575843151,-500.0,0.00013972,2]
[332847631,1721575843161,-500.0,0.00013972,2]
[332847632,1721575843173,-235.43,0.00013972,2]
[332847633,1721575843185,-516.42,0.00013972,2]
[332847634,1721575843197,-531.38,0.00013972,2]
[332847635,1721575843208,-430.44968673,0.00013972,2]
[332847636,1721575843218,-500.0,0.00013972,2]
[332847637,1721575843229,-500.0,0.00013972,2]
[332847638,1721575843239,-500.0,0.00013972,2]
[332847640,1721575843249,-500.0,0.00013972,2]
[332847641,1721575843260,-214.38,0.00013972,2]
[332847642,1721575843270,-500.0,0.00013972,2]
[332847644,1721575843280,-500.0,0.00013972,2]
[332847646,1721575843291,-500.0,0.00013972,2]
[332847648,1721575843301,-336.56,0.00013972,2]
[332847650,1721575843313,-449.60475836,0.00013972,2]
[332847652,1721575843325,-500.0,0.00013972,2]
[332847654,1721575843335,-500.0,0.00013972,2]
[332847656,1721575843346,-500.0,0.00013972,2]
[332847659,1721575843356,-500.0,0.00013972,2]
[332847661,1721575843367,-500.0,0.00013972,2]
[332847663,1721575843377,-500.0,0.00013972,2]
[332847665,1721575843390,-421.52,0.00013972,2]
[332847667,1721575843400,-185.82,0.00013972,2]
[332847669,1721575843411,-500.91623701,0.00013972,2]
[332847671,1721575843421,-535.54,0.00013972,2]
[332847672,1721575843433,-500.0,0.00013972,2]
[332847673,1721575843443,-500.0,0.00013972,2]
[332847675,1721575843455,-500.0,0.00013972,2]
[332847677,1721575843466,-565.6,0.00013972,2]
[332847679,1721575843477,-500.0,0.00013972,2]
[332847681,1721575843487,-500.0,0.00013972,2]
[332847682,1721575843499,-500.0,0.00013972,2]
[332847683,1721575843515,-500.0,0.00013972,2]
[332847684,1721575843525,-500.0,0.00013972,2]
[332847685,1721575843537,-389.65926264,0.00013972,2]
[332847686,1721575843548,-367.35615468,0.00013994,2]
[332847688,1721575843561,-5304.19710114,0.00014045,2]
[332847689,1721575843574,-966.10767557,0.00014084,2]
[332847690,1721575843584,-168.63263478,0.00014134,2]
[332847691,1721575843594,-230.109342,0.00014167,2]
[332847692,1721575843606,-243.683674,0.00014167,2]
[332847693,1721575843617,-150.112233,0.000142,5]
[332847694,1721575843628,-150.112233,0.000142,4]
[332847695,1721575843641,-13449.4671886,0.00014224,2]
[332847696,1721575843653,-500.0,0.00014234,2]
[332847697,1721575843665,-500.0,0.00014234,2]
[332847698,1721575843675,-627.68,0.00014234,2]
[332847699,1721575843686,-500.0,0.00014234,2]
[332847700,1721575843696,-500.0,0.00014234,2]
[332847701,1721575844013,-500.0,0.00014234,2]
[332847702,1721575844027,-500.0,0.00014234,2]
[332847703,1721575844036,-500.0,0.00014234,2]
[332847704,1721575844045,-223.39696642,0.00014234,2]
[332847705,1721575844055,-561.68,0.00014234,2]
[332847706,1721575844064,-554.8,0.00014234,2]
[332847707,1721575844075,-500.0,0.00014234,2]
[332847708,1721575844085,-588.81283957,0.00014234,2]
[332847709,1721575844095,-500.0,0.00014234,2]
[332847710,1721575844104,-500.0,0.00014234,2]
[332847711,1721575844114,-500.0,0.00014234,2]
[332847712,1721575844124,-500.0,0.00014234,2]
[332847713,1721575844133,-500.0,0.00014234,2]
[332847714,1721575844143,-500.0,0.00014234,2]
[332847715,1721575844152,-604.38,0.00014234,2]
[332847716,1721575844161,-648.14,0.00014234,2]
[332847717,1721575844171,-527.61,0.00014234,2]
[332847718,1721575844180,-505.89,0.00014234,2]
[332847719,1721575844189,-500.0,0.00014234,2]
[332847720,1721575844199,-500.0,0.00014234,2]
[332847721,1721575844210,-500.0,0.00014234,2]
[332847722,1721575844221,-500.0,0.00014234,2]
[332847723,1721575844231,-500.0,0.00014234,2]
[332847724,1721575844242,-244.8,0.00014234,2]
[332847725,1721575844252,-500.0,0.00014234,2]
[332847726,1721575844262,-500.0,0.00014234,2]
[332847727,1721575844271,-514.46089773,0.00014234,2]
[332847728,1721575844281,-644.61,0.00014234,2]
[332847729,1721575844290,-435.93,0.00014234,2]
[332847730,1721575844300,-500.0,0.00014234,2]
[332847731,1721575844309,-500.0,0.00014234,2]
[332847733,1721575844321,-500.0,0.00014234,2]
[332847735,1721575844331,-511.22,0.00014234,2]
[332847736,1721575844341,-500.0,0.00014234,2]
[332847737,1721575844350,-500.0,0.00014234,2]
[332847738,1721575844359,-500.0,0.00014234,2]
[332847739,1721575844369,-500.0,0.00014234,2]
[332847740,1721575844378,-500.0,0.00014234,2]
[332847741,1721575844388,-500.0,0.00014234,2]
[332847742,1721575844399,-500.0,0.00014234,2]
[332847743,1721575844408,-509.06779164,0.00014234,2]
[332847744,1721575844417,-327.41,0.00014234,2]
[332847745,1721575844427,-500.0,0.00014234,2]
[332847746,1721575844436,-500.0,0.00014234,2]
[332847747,1721575844448,-384.66,0.00014234,2]
[332847748,1721575844457,-632.04,0.00014234,2]
[332847749,1721575844467,-500.0,0.00014234,2]
[332847750,1721575844476,-200.9,0.00014234,2]
[332847751,1721575844485,-316.07,0.00014234,2]
[332847752,1721575844495,-500.0,0.00014234,2]
[332847753,1721575844507,-500.0,0.00014234,2]
[332847754,1721575844518,-223.1,0.00014234,2]
[332847755,1721575844528,-500.0,0.00014234,2]
[332847756,1721575844537,-500.0,0.00014234,2]
[332847757,1721575844547,-500.0,0.00014234,2]
[332847758,1721575844557,-500.0,0.00014234,2]
[332847759,1721575844567,-500.0,0.00014234,2]
[332847760,1721575844579,-152.01,0.00014234,2]
[332847761,1721575844590,-417.62,0.00014234,2]
[332847762,1721575844600,-318.39,0.00014234,2]
[332847763,1721575844612,-374.1,0.00014234,2]
[332847764,1721575844622,-500.0,0.00014234,2]
[332847765,1721575844632,-187.94,0.00014234,2]
[332847766,1721575844643,-500.0,0.00014234,2]
[332847767,1721575844654,-500.0,0.00014235,2]
[332847768,1721575844664,-53797.8687545,0.00014236,2]
[332847769,1721575844674,-500.0,0.00014244,2]
[332847770,1721575844684,-500.0,0.00014245,2]
[332847771,1721575844694,-368.15972447,0.00014245,2]
[332847772,1721575844705,-117696.1488246,0.00014246,5]
[332847774,1721575844915,-300.101,0.00014097,2]
[332847775,1721575844925,-153.0,0.000141,2]
[332847776,1721575844935,-3085.55971615,0.00014246,5]
[332847777,1721575844947,-7892.08789961,0.00014246,5]
[332847778,1721575844959,-3617.91055476,0.00014246,5]
[332847786,1721575848919,-3681.82952532,0.00014246,5]
[332847787,1721575849687,526.40635673,0.00012121,2]
[332847788,1721575866190,154.72922386,0.0001,2]
[332847789,1721575899963,550.0,0.000225,30]
[332847932,1721576836174,-155.36462481,9.999e-05,2]
[332847933,1721576836197,-663.44744723,9.999e-05,2]
[332847934,1721576836220,-156.54596423,9.999e-05,2]
[332847935,1721576836241,-403.03069115,9.999e-05,2]
[332847936,1721576836262,-175.27077614,0.0001,2]
[332847937,1721576836284,-160.310027,0.00012835,2]
[332847938,1721576836308,-160.310027,0.00012901,2]
[332847939,1721576836329,-160.310027,0.00012968,2]
[332847940,1721576836351,-68.538577,0.00013035,2]
[332847941,1721576838126,-91.77145,0.00013035,2]
[332847942,1721576838151,-160.310027,0.00013102,2]
[332847943,1721576838172,-160.310027,0.00013169,2]
[332847944,1721576838195,-160.310027,0.00013236,2]
[332847945,1721576838218,-160.310027,0.00013303,2]
[332847946,1721576838244,-160.310027,0.0001337,2]
[332847947,1721576838266,-160.310027,0.00013436,2]
[332847948,1721576838531,-153.0,0.00013478,2]
[332847949,1721576838555,-153.0,0.00013478,2]
[332847950,1721576838577,-160.310027,0.00013503,2]
[332847951,1721576838599,-1207.53933454,0.00013598,2]
[332847952,1721576838620,-407.56022939,0.000136,2]
[332847953,1721576838643,-300.0,0.00013695,2]
[332847954,1721576838668,-300.0,0.00013695,2]
[332847955,1721576838690,-166.18,0.00013698,2]
[332847956,1721576838711,-500.0,0.00013698,2]
[332847957,1721576838733,-184.13,0.00013698,2]
[332847958,1721576838755,-271.46,0.00013698,2]
[332847959,1721576838776,-500.0,0.00013698,2]
[332847960,1721576838799,-500.0,0.00013698,2]
[332847961,1721576838822,-582.74,0.00013698,2]
[332847962,1721576838845,-500.0,0.00013698,2]
[332847963,1721576838866,-276.21,0.00013698,2]
[332847964,1721576838892,-500.0,0.00013698,2]
[332847965,1721576838913,-453.2,0.00013698,2]
[332847966,1721576838936,-557.52,0.00013698,2]
[332847967,1721576838957,-500.0,0.00013698,2]
[332847968,1721576838979,-500.0,0.00013698,2]
[332847969,1721576839001,-476.27,0.00013698,2]
[332847970,1721576839022,-337.86,0.00013698,2]
[332847971,1721576839043,-166.49,0.00013698,2]
[332847972,1721576839064,-578.09,0.00013698,2]
[332847973,1721576839084,-500.0,0.00013698,2]
[332847974,1721576839105,-500.0,0.00013698,2]
[332847975,1721576839126,-500.0,0.00013698,2]
[332847976,1721576839150,-500.0,0.00013698,2]
[332847977,1721576839174,-368.15972447,0.00013698,2]
[332847978,1721576839196,-359.08,0.00013698,2]
[332847979,1721576839216,-500.0,0.00013698,2]
[332847980,1721576839237,-500.0,0.00013698,2]
[332847981,1721576839256,-500.0,0.00013698,2]
[332847982,1721576839276,-500.0,0.00013698,2]
[332847983,1721576839297,-520.13823234,0.00013698,2]
[332847984,1721576839318,-500.0,0.00013698,2]
[332847985,1721576839341,-500.0,0.00013698,2]
[332847986,1721576839363,-500.0,0.00013698,2]
[332847987,1721576839387,-500.0,0.00013698,2]
[332847988,1721576839408,-500.0,0.00013698,2]
[332847989,1721576839429,-500.0,0.00013698,2]
[332847990,1721576839450,-500.0,0.00013698,2]
[332847991,1721576839471,-500.0,0.00013698,2]
[332847992,1721576839491,-500.0,0.00013698,2]
[332847993,1721576839512,-500.0,0.00013698,2]
[332847994,1721576839534,-459.37014674,0.00013698,2]
[332847995,1721576839554,-500.0,0.00013698,2]
[332847996,1721576839576,-500.0,0.00013698,2]
[332847997,1721576839598,-486.08324976,0.00013698,2]
[332847998,1721576839619,-575.57,0.00013698,2]
[332847999,1721576839642,-500.0,0.00013698,2]
[332848000,1721576839663,-505.71283809,0.00013698,2]
[332848001,1721576839684,-500.0,0.00013698,2]
[332848002,1721576839705,-500.0,0.00013698,2]
[332848003,1721576839725,-500.0,0.00013698,2]
[332848004,1721576839747,-500.0,0.00013698,2]
[332848005,1721576839767,-500.0,0.00013698,2]
[332848006,1721576839787,-500.0,0.00013698,2]
[332848007,1721576839810,-527.98386367,0.00013698,2]
[332848008,1721576839832,-500.0,0.00013698,2]
[332848009,1721576839854,-500.0,0.00013698,2]
[332848010,1721576839875,-500.0,0.00013698,2]
[332848011,1721576839899,-500.0,0.00013698,2]
[332848012,1721576839920,-500.0,0.00013698,2]
[332848013,1721576839940,-500.0,0.00013698,2]
[332848014,1721576839961,-511.77010146,0.00013698,2]
[332848015,1721576839981,-500.0,0.00013698,2]
[332848016,1721576840002,-500.0,0.00013698,2]
[332848017,1721576840024,-167.75619751,0.00013698,2]
[332848018,1721576840044,-549.02,0.00013698,2]
[332848019,1721576840067,-466.47768133,0.00013698,2]
[332848020,1721576840088,-500.0,0.00013698,2]
[332848021,1721576840108,-500.0,0.00013698,2]
[332848022,1721576840127,-500.0,0.00013698,2]
[332848023,1721576840149,-500.0,0.00013698,2]
[332848024,1721576840169,-500.0,0.00013698,2]
[332848025,1721576840190,-500.0,0.00013698,2]
[332848026,1721576840210,-500.0,0.00013698,2]
[332848027,1721576840230,-500.0,0.00013698,2]
[332848028,1721576840249,-192.48985161,0.00013698,2]
[332848029,1721576840269,-500.0,0.00013698,2]
[332848030,1721576840289,-500.0,0.00013698,2]
[332848031,1721576840310,-500.0,0.00013698,2]
[332848032,1721576840330,-500.0,0.00013698,2]
[332848033,1721576840352,-509.7790004,0.00013698,2]
[332848034,1721576840373,-500.0,0.00013698,2]
[332848035,1721576840395,-500.0,0.00013698,2]
[332848036,1721576840416,-500.0,0.00013698,2]
[332848037,1721576840438,-500.0,0.00013698,2]
[332848038,1721576840458,-500.0,0.00013698,2]
[332848039,1721576840478,-500.0,0.00013698,2]
[332848040,1721576840497,-500.0,0.00013698,2]
[332848041,1721576840517,-500.0,0.00013698,2]
[332848042,1721576840536,-500.0,0.00013698,2]
[332848043,1721576840556,-500.0,0.00013698,2]
[332848044,1721576840576,-500.0,0.00013698,2]
[332848045,1721576840596,-500.0,0.00013698,2]
[332848046,1721576840617,-500.0,0.00013698,2]
[332848047,1721576840640,-500.0,0.00013698,2]
[332848048,1721576840661,-554.09,0.00013698,2]
[332848049,1721576840682,-500.0,0.00013698,2]
[332848050,1721576840706,-501.19667291,0.00013698,2]
[332848051,1721576840730,-500.0,0.00013698,2]
[332848052,1721576840752,-500.0,0.00013698,2]
[332848053,1721576840774,-592.29167057,0.00013698,2]
[332848054,1721576840799,-234.72,0.00013698,2]
[332848055,1721576840819,-500.0,0.00013698,2]
[332848056,1721576840842,-500.0,0.00013698,2]
[332848057,1721576840865,-500.0,0.00013698,2]
[332848058,1721576840891,-483.21411368,0.00013698,2]
[332848059,1721576840912,-620.43759471,0.00013698,2]
[332848060,1721576840934,-481.49389394,0.00013698,2]
[332848061,1721576840955,-500.0,0.00013698,2]
[332848062,1721576840975,-500.0,0.00013698,2]
[332848063,1721576840996,-500.0,0.00013698,2]
[332848064,1721576841017,-500.0,0.00013698,2]
[332848065,1721576841038,-500.0,0.00013698,2]
[332848066,1721576841060,-500.0,0.00013698,2]
[332848067,1721576841081,-169.39082304,0.00013698,2]
[332848068,1721576841105,-166.666666,0.00013699,2]
[332848069,1721576841128,-688.6624147,0.00013699,2]
[332848070,1721576841151,-5304.19710114,0.00013838,2]
[332848071,1721576841172,-1408.0,0.00013862,2]
[332848072,1721576841192,-150.0,0.00013862,2]
[332848073,1721576841212,-490.058,0.00013862,2]
[332848074,1721576841231,-367.35615468,0.00013873,2]
[332848075,1721576841251,-614.95427088,0.00013972,2]
[332848076,1721576841271,-500.0,0.00013972,2]
[332848077,1721576841292,-500.0,0.00013972,2]
[332848078,1721576841313,-500.0,0.00013972,2]
[332848079,1721576841335,-500.0,0.00013972,2]
[332848080,1721576841360,-531.38,0.00013972,2]
[332848081,1721576841381,-214.38,0.00013972,2]
[332848082,1721576841403,-500.0,0.00013972,2]
[332848083,1721576841424,-268.59,0.00013972,2]
[332848084,1721576841449,-500.0,0.00013972,2]
[332848085,1721576841469,-500.0,0.00013972,2]
[332848086,1721576841490,-400.07543315,0.00014,2]
[332848087,1721576841509,-11217.566125,0.00014,2]
[332848088,1721576841531,-620.0000001,0.00014117,2]
[332848089,1721576841553,-168.63263478,0.00014146,2]
[332848090,1721576841578,-10828.2863024,0.00014186,2]
[332848091,1721576841598,-500.0,0.00014188,2]
[332848092,1721576841619,-940.22181346,0.00014188,2]
[332848093,1721576841642,-393.2503088,0.00014188,2]
[332848094,1721576841662,-500.0,0.00014188,2]
[332848095,1721576841683,-940.22181346,0.00014188,2]
[332848096,1721576841704,-500.0,0.00014188,2]
[332848097,1721576841726,-940.22181346,0.00014188,2]
[332848098,1721576841747,-500.0,0.00014188,2]
[332848099,1721576841768,-210.62439012,0.00014188,2]
[332848100,1721576841789,-940.22181346,0.00014188,2]
[332848101,1721576841814,-500.0,0.00014188,2]
[332848102,1721576841839,-940.22181346,0.00014188,2]
[332848103,1721576841862,-940.22181346,0.00014188,2]
[332848104,1721576841883,-301.89368427,0.00014188,2]
[332848105,1721576841908,-940.22181346,0.00014188,2]
[332848106,1721576841928,-940.22181346,0.00014188,2]
[332848107,1721576841950,-500.0,0.00014188,2]
[332848108,1721576841970,-940.22181346,0.00014188,2]
[332848109,1721576841990,-500.0,0.00014188,2]
[332848110,1721576842012,-940.22181346,0.00014188,2]
[332848111,1721576842036,-500.0,0.00014188,2]
[332848112,1721576842059,-940.22181346,0.00014188,2]
[332848113,1721576842080,-500.0,0.00014188,2]
[332848114,1721576842100,-940.22181346,0.00014188,2]
[332848115,1721576842132,-940.22181346,0.00014188,2]
[332848116,1721576842282,-500.0,0.00014188,2]
[332848117,1721576842306,-940.22181346,0.00014188,2]
[332848118,1721576842327,-940.22181346,0.00014188,2]
[332848119,1721576842348,-500.0,0.00014188,2]
[332848120,1721576842368,-500.0,0.00014188,2]
[332848121,1721576842389,-500.0,0.00014188,2]
[332848122,1721576842409,-940.22181346,0.00014188,2]
[332848123,1721576842430,-500.0,0.00014188,2]
[332848124,1721576842450,-940.22181346,0.00014188,2]
[332848125,1721576842471,-940.22181346,0.00014188,2]
[332848126,1721576842669,-940.22181346,0.00014188,2]
[332848127,1721576842690,-940.22181346,0.00014188,2]
[332848128,1721576842711,-158.12357695,0.00014188,2]
[332848129,1721576842731,-1358.03469422,0.00014188,2]
[332848130,1721576842751,-500.0,0.00014188,2]
[332848131,1721576842771,-1358.03469422,0.00014188,2]
[332848132,1721576842794,-550.0,0.00014188,2]
[332848133,1721576842821,-1358.03469422,0.00014188,2]
[332848134,1721576842842,-1358.03469422,0.00014188,2]
[332848135,1721576842863,-1358.03469422,0.00014188,2]
[332848136,1721576842885,-1358.03469422,0.00014188,2]
[332848137,1721576842911,-220.1802024,0.00014188,2]
[332848138,1721576842933,-10828.2863024,0.0001419,2]
[332848139,1721576842954,-153.0,0.000142,2]
[332848140,1721576842975,-150.112233,0.000142,3]
[332848141,1721576842996,-53000.0,0.000142,2]
[332848142,1721576843016,-150.112233,0.000142,4]
[332848143,1721576843036,-150.112233,0.000142,3]
[332848144,1721576843057,-500.0,0.00014234,2]
[332848145,1721576843077,-429.48572886,0.00014234,2]
[332848146,1721576843096,-500.0,0.00014234,2]
[332848147,1721576843118,-43313.1452097,0.00014236,2]
[332848148,1721576843141,-9032.73012721,0.00014246,5]
[332848149,1721576843161,-1013.68463964,0.00014246,2]
[332848150,1721576843181,-3041.94,0.00014246,2]
[332848151,1721576843200,-1054.8,0.00014246,2]
[332848152,1721576843220,-500.0,0.00014246,2]
[332848153,1721576843240,-2090.47,0.00014246,2]
[332848154,1721576843261,-500.0,0.00014246,2]
[332848155,1721576843281,-1806.74,0.00014246,2]
[332848156,1721576843302,-2202.13,0.00014246,2]
[332848157,1721576843322,-500.0,0.00014246,2]
[332848158,1721576843344,-500.0,0.00014246,2]
[332848159,1721576843367,-500.0,0.00014246,2]
[332848160,1721576843388,-4016.4,0.00014246,2]
[332848161,1721576843414,-2213.48,0.00014246,2]
[332848162,1721576843435,-500.0,0.00014246,2]
[332848163,1721576843455,-500.0,0.00014246,2]
[332848164,1721576843475,-500.0,0.00014246,2]
[332848165,1721576843495,-500.0,0.00014246,2]
[332848166,1721576843515,-509.44039861,0.00014246,2]
[332848167,1721576843535,-2197.7,0.00014246,2]
[332848168,1721576843555,-1723.55,0.00014246,2]
[332848169,1721576843576,-500.0,0.00014246,2]
[332848170,1721576843596,-652.01,0.00014246,2]
[332848171,1721576843616,-5397.5,0.00014246,2]
[332848172,1721576843636,-1092.54,0.00014246,2]
[332848173,1721576843660,-993.63,0.00014246,2]
[332848174,1721576843681,-917.62,0.00014246,2]
[332848175,1721576843702,-500.0,0.00014246,2]
[332848176,1721576843722,-500.0,0.00014246,2]
[332848177,1721576843742,-500.0,0.00014246,2]
[332848178,1721576843763,-1170.03,0.00014246,2]
[332848179,1721576843785,-716.45,0.00014246,2]
[332848180,1721576843811,-4132.02,0.00014246,2]
[332848181,1721576843834,-500.0,0.00014246,2]
[332848182,1721576843855,-500.0,0.00014246,2]
[332848183,1721576843878,-2222.11,0.00014246,2]
[332848184,1721576843901,-818.39,0.00014246,2]
[332848185,1721576843923,-500.0,0.00014246,2]
[332848186,1721576843945,-935.93,0.00014246,2]
[332848187,1721576843969,-7400.98,0.00014246,2]
[332848188,1721576843990,-930.77,0.00014246,2]
[332848189,1721576844011,-500.0,0.00014246,2]
[332848190,1721576844032,-500.0,0.00014246,2]
[332848191,1721576844054,-734.72,0.00014246,2]
[332848192,1721576844075,-500.0,0.00014246,2]
[332848193,1721576844097,-500.0,0.00014246,2]
[332848194,1721576844118,-850.61,0.00014246,2]
[332848195,1721576844140,-1669.97,0.00014246,2]
[332848196,1721576844162,-500.0,0.00014246,2]
[332848197,1721576844183,-552.12,0.00014246,2]
[332848198,1721576844204,-930.18,0.00014246,2]
[332848199,1721576844225,-500.0,0.00014246,2]
[332848200,1721576844246,-482.2656676,0.00014246,2]
[332848201,1721576854095,-17.7343324,0.00014246,2]
[332848202,1721576854116,-827.41,0.00014246,2]
[332848203,1721576854138,-500.0,0.00014246,2]
[332848204,1721576854161,-1082.74,0.00014246,2]
[332848205,1721576854183,-592.66273656,0.00014246,2]
[332848214,1721576978104,154.72922386,0.0001,2]
[332848215,1721577021603,154.72922386,0.00012121,2]
[332848216,1721577023331,1729.58835228,0.0001,2]
[332848217,1721577023352,916.29585596,0.0001,2]
[332848239,1721577031864,-680.57379999,0.00013862,2]
[332848240,1721577031922,-632.68231449,0.00013862,2]
[332848241,1721577031933,-94.74388552,0.00013862,2]
[332848242,1721577031942,-1056.59691767,0.00014145,2]
[332848243,1721577031952,-490.55548387,0.000142,2]
[332848244,1721577031964,-599.09451613,0.000142,2]
[332848245,1721577031973,-1698.60948231,0.00014236,2]
[332848262,1721577040152,-5881.1909294,0.00014236,2]
[332848263,1721577040162,-500.0,0.00014245,2]
[332848264,1721577040172,-608.12357694,0.00014245,2]
[332848265,1721577040181,-744.85572713,0.00014245,2]
[332848266,1721577040191,-500.0,0.00014245,2]
[332848267,1721577040201,-744.85572713,0.00014245,2]
[332848268,1721577040210,-744.85572713,0.00014245,2]
[332848269,1721577040220,-500.0,0.00014245,2]
[332848270,1721577040230,-744.85572713,0.00014245,2]
[332848271,1721577040240,-744.85572713,0.00014245,2]
[332848272,1721577040249,-744.85572713,0.00014245,2]
[332848273,1721577040259,-744.85572713,0.00014245,2]
[332848274,1721577040269,-500.0,0.00014245,2]
[332848275,1721577040279,-744.85572713,0.00014245,2]
[332848276,1721577040291,-744.85572713,0.00014245,2]
[332848277,1721577040300,-744.85572713,0.00014245,2]
[332848278,1721577040311,-500.0,0.00014245,2]
[332848279,1721577040320,-744.85572713,0.00014245,2]
[332848280,1721577040332,-500.0,0.00014245,2]
[332848281,1721577040345,-744.85572713,0.00014245,2]
[332848283,1721577040358,-744.85572713,0.00014245,2]
[332848284,1721577040372,-744.85572713,0.00014245,2]
[332848285,1721577040385,-744.85572713,0.00014245,2]
[332848286,1721577040397,-744.85572713,0.00014245,2]
[332848287,1721577040409,-744.85572713,0.00014245,2]
[332848288,1721577040419,-500.0,0.00014245,2]
[332848289,1721577040430,-744.85572713,0.00014245,2]
[332848290,1721577040442,-744.85572713,0.00014245,2]
[332848291,1721577040453,-744.85572713,0.00014245,2]
[332848292,1721577040466,-744.85572713,0.00014245,2]
[332848293,1721577040478,-744.85572713,0.00014245,2]
[332848294,1721577040491,-484.48726344,0.00014246,2]
[332848295,1721577040502,-2665.28,0.00014246,2]
[332848296,1721577040514,-1492.38,0.00014246,2]
[332848297,1721577040526,-500.0,0.00014246,2]
[332848298,1721577040538,-500.0,0.00014246,2]
[332848299,1721577040551,-1378.02,0.00014246,2]
[332848300,1721577040562,-500.0,0.00014246,2]
[332848301,1721577040575,-1450.96,0.00014246,2]
[332848302,1721577040586,-500.0,0.00014246,2]
[332848303,1721577040598,-500.0,0.00014246,2]
[332848304,1721577040609,-500.0,0.00014246,2]
[332848305,1721577040620,-500.0,0.00014246,2]
[332848306,1721577040631,-254.7491897,0.00014246,2]
[332848307,1721577040643,-559.28,0.00014246,2]
[332848308,1721577040655,-776.21,0.00014246,2]
[332848309,1721577040667,-2703.39,0.00014246,2]
[332848310,1721577040679,-500.0,0.00014246,2]
[332848311,1721577040692,-508.21,0.00014246,2]
[332848312,1721577040705,-722.53,0.00014246,2]
[332848313,1721577040715,-1011.22,0.00014246,2]
[332848314,1721577040728,-500.0,0.00014246,2]
[332848315,1721577040739,-521.74,0.00014246,2]
[332848316,1721577040751,-500.0,0.00014246,2]
[332848317,1721577040762,-1538.99,0.00014246,2]
[332848319,1721577040775,-1744.99,0.00014246,2]
[332848320,1721577040789,-500.0,0.00014246,2]
[332848321,1721577040800,-10125.34,0.00014246,2]
[332848322,1721577040811,-500.0,0.00014246,2]
[332848323,1721577040824,-923.66,0.00014246,2]
[332848324,1721577040836,-500.0,0.00014246,2]
[332848325,1721577040851,-767.77,0.00014246,2]
[332848326,1721577040863,-4491.18,0.00014246,2]
[332848327,1721577040874,-500.0,0.00014246,2]
[332848328,1721577040886,-1883.32,0.00014246,2]
[332848329,1721577040898,-556.62,0.00014246,2]
[332848330,1721577040910,-500.0,0.00014246,2]
[332848331,1721577040920,-500.0,0.00014246,2]
[332848332,1721577040934,-500.0,0.00014246,2]
[332848333,1721577040945,-500.0,0.00014246,2]
[332848334,1721577040956,-710.76,0.00014246,2]
[332848335,1721577040967,-500.0,0.00014246,2]
[332848336,1721577040978,-763.56,0.00014246,2]
[332848337,1721577040990,-3281.33,0.00014246,2]
[332848338,1721577041003,-638.5,0.00014246,2]
[332848339,1721577041017,-4482.68,0.00014246,2]
[332848340,1721577041030,-644.61,0.00014246,2]